fUSD/lending_fUSD_20240324
["ID","MTS","AMOUNT","RATE_DAILY","PERIOD"]
[320290961,1711248638264,-200.0,0.00019431,2]
[320290962,1711248638274,-500.0,0.00019431,2]
[320290963,1711248638284,-200.0,0.00019431,2]
[320290964,1711248638297,-1000.0,0.000195,2]
[320290965,1711248638306,-12490.24469377,0.000195,2]
[320290966,1711248638316,-160.9080288,0.00019525,2]
[320290967,1711248638325,-268.29,0.00019562,2]
[320290968,1711248638334,-1000.0,0.000196,2]
[320290969,1711248638344,-1281.9,0.00019619,2]
[320290970,1711248638353,-800.0,0.00019633,2]
[320290971,1711248638362,-200.0,0.00019633,2]
[320290972,1711248638372,-160.0,0.0001966,2]
[320290973,1711248638382,-238.47699909,0.000197,2]
[320290974,1711248638391,-1000.0,0.000197,2]
[320290975,1711248638401,-1000.0,0.0001972,2]
[320290976,1711248638411,-155.24275473,0.00019721,2]
[320290977,1711248638420,-199.59716622,0.00019721,2]
[320290978,1711248638430,-615.8881544,0.00019722,2]
[320290979,1711248638440,-1000.0,0.000198,2]
[320290980,1711248638449,-777.8105848,0.00019809,2]
[320290981,1711248638459,-200.0,0.00019836,2]
[320290982,1711248638468,-800.0,0.00019836,2]
[320290983,1711248638477,-200.0,0.00019836,2]
[320290984,1711248638486,-500.0,0.00019836,2]
[320290985,1711248638496,-150.71749026,0.000199,2]
[320290986,1711248638505,-150.7174898,0.000199,2]
[320290987,1711248638516,-150.7174898,0.000199,2]
[320290988,1711248638526,-150.7174898,0.000199,2]
[320290989,1711248638535,-150.7174898,0.000199,2]
[320290990,1711248638546,-150.7174898,0.000199,2]
[320290991,1711248638561,-676.88127,0.00019995,2]
[320290992,1711248638571,-166.92179785,0.00019996,2]
[320290993,1711248638582,-155.80444542,0.00019996,2]
[320290994,1711248638592,-205.51417289,0.00019996,2]
[320290995,1711248638602,-5008.75142261,0.00019996,2]
[320290996,1711248638612,-1433.79472148,0.0002,2]
[320290997,1711248638624,-854.39066674,0.0002,2]
[320290998,1711248638635,-5000.0,0.0002,2]
[320290999,1711248638648,-472.0,0.0002,2]
[320291000,1711248638657,-162006.12672735,0.0002,2]
[320291001,1711248638668,-860.29002886,0.0002,2]
[320291002,1711248638677,-479.0,0.0002,2]
[320291003,1711248638688,-834.95155371,0.00020008,2]
[320291004,1711248638698,-458.61780513,0.00020022,2]
[320291005,1711248638707,-150.7174898,0.00020036,2]
[320291006,1711248638717,-561.8,0.0002013,2]
[320291007,1711248638727,-151.032411,0.00020148,2]
[320291008,1711248638737,-297.8,0.00020289,2]
[320291009,1711248638747,-150.7174898,0.00020392,2]
[320291010,1711248638757,-860.0,0.000204,3]
[320291011,1711248638767,-1000.0,0.00020446,2]
[320291012,1711248638777,-151.032411,0.00020448,2]
[320291013,1711248638787,-163.0,0.00020572,2]
[320291014,1711248638796,-17586.0,0.000207,5]
[320291015,1711248638806,-150.7174898,0.00020747,2]
[320291016,1711248638817,-454.90746952,0.00020755,2]
[320291017,1711248638827,-161.84938614,0.0002079,2]
[320291018,1711248638842,-208.45,0.000208,2]
[320291019,1711248638852,-209.17,0.000209,2]
[320291020,1711248638864,-712.42245715,0.00021,2]
[320291021,1711248638873,-1467.33947193,0.00021,2]
[320291022,1711248638883,-12469.56377437,0.00021,2]
[320291023,1711248638893,-173139.84091003,0.00021,2]
[320291024,1711248638902,-158515.79933501,0.00021,2]
[320291025,1711248638911,-550.0,0.00021,3]
[320291026,1711248638921,-705.07624242,0.00021,2]
[320291027,1711248638931,-705.07624242,0.00021,2]
[320291028,1711248638940,-705.07624242,0.00021,2]
[320291029,1711248638950,-705.07624242,0.00021,2]
[320291030,1711248638959,-705.07624242,0.00021,2]
[320291031,1711248638969,-705.07624242,0.00021,2]
[320291032,1711248638979,-705.07624242,0.00021,2]
[320291033,1711248638989,-705.07624242,0.00021,2]
[320291034,1711248638999,-705.07624242,0.00021,2]
[320291035,1711248639009,-705.07624242,0.00021,2]
[320291036,1711248639019,-705.07624242,0.00021,2]
[320291037,1711248639029,-705.07624242,0.00021,2]
[320291038,1711248639039,-705.07624242,0.00021,2]
[320291039,1711248639048,-705.07624242,0.00021,2]
[320291040,1711248639059,-705.07624242,0.00021,2]
[320291041,1711248639069,-705.07624242,0.00021,2]
[320291042,1711248639078,-705.07624242,0.00021,2]
[320291043,1711248639089,-705.07624242,0.00021,2]
[320291044,1711248639098,-705.07624242,0.00021,2]
[320291045,1711248639110,-705.07624242,0.00021,2]
[320291046,1711248639120,-705.07624242,0.00021,2]
[320291047,1711248639130,-705.07624242,0.00021,2]
[320291048,1711248639140,-705.07624242,0.00021,2]
[320291049,1711248639149,-705.07624242,0.00021,2]
[320291050,1711248639159,-705.07624242,0.00021,2]
[320291051,1711248639169,-705.07624242,0.00021,2]
[320291052,1711248639179,-705.07624242,0.00021,2]
[320291053,1711248639189,-705.07624242,0.00021,2]
[320291054,1711248639199,-705.07624242,0.00021,2]
[320291055,1711248639209,-705.07624242,0.00021,2]
[320291056,1711248639218,-705.07624242,0.00021,2]
[320291057,1711248639229,-705.07624242,0.00021,2]
[320291058,1711248639239,-705.07624242,0.00021,2]
[320291059,1711248639249,-705.07624242,0.00021,2]
[320291060,1711248639258,-705.07624242,0.00021,2]
[320291061,1711248639268,-705.07624242,0.00021,2]
[320291062,1711248639278,-705.07624242,0.00021,2]
[320291063,1711248639289,-705.07624242,0.00021,2]
[320291064,1711248639299,-705.07624242,0.00021,2]
[320291065,1711248639309,-705.07624242,0.00021,2]
[320291066,1711248639318,-705.07624242,0.00021,2]
[320291067,1711248639328,-705.07624242,0.00021,2]
[320291068,1711248639338,-705.07624242,0.00021,2]
[320291069,1711248639348,-705.07624242,0.00021,2]
[320291070,1711248639357,-705.07624242,0.00021,2]
[320291071,1711248639367,-705.07624242,0.00021,2]
[320291072,1711248639377,-705.07624242,0.00021,2]
[320291073,1711248639386,-705.07624242,0.00021,2]
[320291074,1711248639396,-705.07624242,0.00021,2]
[320291075,1711248639405,-705.07624242,0.00021,2]
[320291076,1711248639415,-705.07624242,0.00021,2]
[320291077,1711248639424,-705.07624242,0.00021,2]
[320291078,1711248639435,-705.07624242,0.00021,2]
[320291079,1711248639446,-705.07624242,0.00021,2]
[320291080,1711248639455,-705.07624242,0.00021,2]
[320291081,1711248639467,-705.07624242,0.00021,2]
[320291082,1711248639477,-705.07624242,0.00021,2]
[320291083,1711248639486,-705.07624242,0.00021,2]
[320291084,1711248639496,-705.07624242,0.00021,2]
[320291085,1711248639506,-705.07624242,0.00021,2]
[320291086,1711248639515,-705.07624242,0.00021,2]
[320291087,1711248639526,-705.07624242,0.00021,2]
[320291088,1711248639535,-705.07624242,0.00021,2]
[320291089,1711248639545,-705.07624242,0.00021,2]
[320291091,1711248639554,-705.07624242,0.00021,2]
[320291093,1711248639563,-705.07624242,0.00021,2]
[320291095,1711248639573,-705.07624242,0.00021,2]
[320291096,1711248639582,-705.07624242,0.00021,2]
[320291098,1711248639591,-705.07624242,0.00021,2]
[320291100,1711248639601,-705.07624242,0.00021,2]
[320291102,1711248639611,-705.07624242,0.00021,2]
[320291104,1711248639620,-705.07624242,0.00021,2]
[320291105,1711248639630,-705.07624242,0.00021,2]
[320291108,1711248639651,-705.07624242,0.00021,2]
[320291110,1711248639662,-705.07624242,0.00021,2]
[320291113,1711248639672,-705.07624242,0.00021,2]
[320291116,1711248639683,-705.07624242,0.00021,2]
[320291118,1711248639692,-705.07624242,0.00021,2]
[320291119,1711248639702,-705.07624242,0.00021,2]
[320291121,1711248639711,-705.07624242,0.00021,2]
[320291123,1711248639723,-705.07624242,0.00021,2]
[320291125,1711248639732,-705.07624242,0.00021,2]
[320291126,1711248639742,-705.07624242,0.00021,2]
[320291128,1711248639752,-705.07624242,0.00021,2]
[320291130,1711248639762,-705.07624242,0.00021,2]
[320291132,1711248639772,-705.07624242,0.00021,2]
[320291134,1711248639781,-705.07624242,0.00021,2]
[320291135,1711248639791,-705.07624242,0.00021,2]
[320291137,1711248639801,-705.07624242,0.00021,2]
[320291139,1711248639811,-705.07624242,0.00021,2]
[320291140,1711248639821,-705.07624242,0.00021,2]
[320291141,1711248639831,-705.07624242,0.00021,2]
[320291142,1711248639841,-705.07624242,0.00021,2]
[320291143,1711248639851,-705.07624242,0.00021,2]
[320291144,1711248639861,-705.07624242,0.00021,2]
[320291145,1711248639871,-705.07624242,0.00021,2]
[320291146,1711248639881,-705.07624242,0.00021,2]
[320291147,1711248639891,-705.07624242,0.00021,2]
[320291148,1711248639900,-705.07624242,0.00021,2]
[320291149,1711248639910,-705.07624242,0.00021,2]
[320291150,1711248639920,-5197.96,0.00021096,2]
[320291151,1711248639930,-5858.84,0.00021096,2]
[320291152,1711248639940,-155.63,0.000211,2]
[320291153,1711248639950,-150.7174898,0.00021103,2]
[320291154,1711248639960,-209.00673076,0.00021179,2]
[320291155,1711248639970,-209.00673076,0.00021207,2]
[320291156,1711248639981,-209.00673076,0.00021216,2]
[320291157,1711248639991,-209.00673076,0.00021295,2]
[320291158,1711248640001,-152.6,0.00021317,2]
[320291159,1711248640011,-1231.184,0.00021443,2]
[320291160,1711248640022,-176.639,0.00021443,2]
[320291161,1711248640032,-737.602,0.00021443,2]
[320291162,1711248640043,-150.14,0.00021443,2]
[320291163,1711248640054,-150.0,0.00021443,2]
[320291164,1711248640064,-151.032411,0.00021448,2]
[320291165,1711248640075,-150.7174898,0.00021459,2]
[320291166,1711248640085,-438.2,0.00021498,2]
[320291167,1711248640095,-3626.321,0.000215,2]
[320291168,1711248640106,-408.82561817,0.000215,2]
[320291169,1711248640115,-777.8105848,0.00021718,2]
[320291170,1711248640126,-150.7174898,0.00021815,2]
[320291171,1711248640136,-268.29,0.00021826,2]
[320291172,1711248640146,-250.0,0.00021918,2]
[320291173,1711248640156,-780.4189049,0.00022,2]
[320291174,1711248640166,-643.81660232,0.00022,2]
[320291175,1711248640179,-155.0,0.00022,2]
[320291176,1711248640189,-150.7174898,0.00022171,2]
[320291177,1711248640199,-1400.0,0.0002218,2]
[320291178,1711248640209,-300.0,0.0002218,2]
[320291179,1711248640219,-1281.9,0.00022359,2]
[320291180,1711248640229,-561.8,0.00022367,2]
[320291181,1711248640239,-707.33,0.00022434,2]
[320291182,1711248640249,-151.032411,0.00022448,2]
[320291183,1711248640259,-150.7174898,0.00022527,2]
[320291184,1711248640269,-297.8,0.00022543,2]
[320291185,1711248640280,-208.45,0.000228,2]
[320291187,1711248640289,-220.0,0.000228,2]
[320291189,1711248640300,-150.7174898,0.00022883,2]
[320291190,1711248640309,-209.17,0.00023,2]
[320291191,1711248640319,-600.0,0.00023,3]
[320291192,1711248640329,-2519.24236,0.00023,2]
[320291193,1711248640339,-155.63,0.000232,2]
[320291194,1711248640349,-150.7174898,0.00023239,2]
[320291195,1711248640359,-151.032411,0.00023448,3]
[320291196,1711248640369,-220000.0,0.000235,2]
[320291197,1711248640378,-1920.91955192,0.0002354,2]
[320291198,1711248640388,-152.0,0.00023562,3]
[320291199,1711248640397,-150.7174898,0.00023595,2]
[320291200,1711248640406,-454.90746952,0.00023611,2]
[320291201,1711248640416,-777.8105848,0.00023627,2]
[320291202,1711248640426,-438.2,0.00023647,2]
[320291203,1711248640435,-152.0,0.00023661,4]
[320291204,1711248640445,-152.0,0.0002376,5]
[320291205,1711248640455,-384.56,0.0002381,2]
[320291206,1711248640464,-152.0,0.00023859,6]
[320291207,1711248640474,-1111.0,0.000239,2]
[320291208,1711248640484,-1810.905955,0.000239,2]
[320291209,1711248640494,-150.7174898,0.00023951,2]
[320291210,1711248640504,-152.0,0.00023958,7]
[320291211,1711248640514,-363.65545929,0.00024,2]
[320291212,1711248640524,-2615.41833507,0.00024,2]
[320291213,1711248640533,-223.90384949,0.00024,2]
[320291214,1711248640542,-708.00015903,0.00024,12]
[320291215,1711248640792,-152.0,0.00024057,8]
[320291216,1711248640802,-3660.737,0.00024082,2]
[320291217,1711248640813,-268.29,0.0002409,2]
[320291218,1711248640822,-981.0,0.000241,7]
[320291219,1711248640832,-152.0,0.00024156,9]
[320291220,1711248640841,-557.0,0.000242,3]
[320291221,1711248640851,-152.0,0.00024255,10]
[320291222,1711248640862,-150.7174898,0.00024307,2]
[320291223,1711248640872,-152.0,0.00024354,11]
[320291224,1711248640882,-151.0,0.00024384,7]
[320291225,1711248640892,-152.493636,0.00024384,7]
[320291226,1711248640902,-155.267191,0.00024384,7]
[320291227,1711248640913,-151.0,0.00024384,7]
[320291228,1711248640923,-151.0,0.00024384,7]
[320291229,1711248640933,-151.0,0.00024384,7]
[320291230,1711248640944,-151.0,0.00024384,7]
[320291231,1711248640954,-151.0,0.00024384,7]
[320291232,1711248640965,-151.0,0.00024384,7]
[320291233,1711248640974,-151.0,0.00024384,7]
[320291234,1711248640984,-151.0,0.00024384,7]
[320291235,1711248640993,-151.0,0.00024384,7]
[320291236,1711248641014,-151.0,0.00024384,7]
[320291237,1711248641026,-151.0,0.00024384,7]
[320291238,1711248641037,-151.0,0.00024384,7]
[320291239,1711248641048,-151.0,0.00024384,7]
[320291240,1711248641058,-151.0,0.00024384,7]
[320291241,1711248641068,-151.0,0.00024384,7]
[320291242,1711248641077,-151.0,0.00024384,7]
[320291243,1711248641087,-151.0,0.00024384,7]
[320291244,1711248641096,-151.0,0.00024384,7]
[320291245,1711248641106,-152.73324,0.00024384,7]
[320291246,1711248641116,-151.702126,0.00024384,7]
[320291247,1711248641125,-151.733628,0.00024384,7]
[320291248,1711248641135,-151.20063,0.00024384,7]
[320291249,1711248641145,-151.348099,0.00024384,7]
[320291250,1711248641155,-151.0,0.00024384,7]
[320291251,1711248641164,-151.0,0.00024384,7]
[320291252,1711248641174,-151.0,0.00024384,7]
[320291253,1711248641188,-151.0,0.00024384,7]
[320291254,1711248641197,-151.0,0.00024384,7]
[320291255,1711248641208,-151.0,0.00024384,7]
[320291256,1711248641217,-151.0,0.00024384,7]
[320291257,1711248641227,-151.0,0.00024384,7]
[320291258,1711248641237,-151.0,0.00024384,7]
[320291259,1711248641247,-151.0,0.00024384,7]
[320291260,1711248641256,-151.0,0.00024384,7]
[320291261,1711248641266,-151.0,0.00024384,7]
[320291262,1711248641278,-151.0,0.00024384,7]
[320291263,1711248641288,-151.0,0.00024384,7]
[320291264,1711248641299,-151.0,0.00024384,7]
[320291265,1711248641308,-151.0,0.00024384,7]
[320291266,1711248641318,-151.0,0.00024384,7]
[320291267,1711248641328,-152.185801,0.00024384,7]
[320291268,1711248641339,-151.0,0.00024384,7]
[320291269,1711248641349,-151.0,0.00024384,7]
[320291270,1711248641358,-156.029938,0.00024384,7]
[320291271,1711248641367,-151.0,0.00024384,7]
[320291272,1711248641377,-151.0,0.00024384,7]
[320291273,1711248641387,-151.0,0.00024384,7]
[320291274,1711248641397,-154.157568,0.00024384,7]
[320291275,1711248641406,-257.442011,0.00024384,7]
[320291276,1711248641415,-257.442011,0.00024384,7]
[320291277,1711248641425,-257.442011,0.00024384,7]
[320291278,1711248641434,-257.442011,0.00024384,7]
[320291279,1711248641444,-151.0,0.00024384,7]
[320291280,1711248641453,-168.569531,0.00024384,7]
[320291281,1711248641462,-257.442011,0.00024384,7]
[320291282,1711248641472,-257.442011,0.00024384,7]
[320291283,1711248641481,-257.442011,0.00024384,7]
[320291284,1711248641491,-257.442011,0.00024384,7]
[320291285,1711248641500,-151.0,0.00024384,7]
[320291286,1711248641510,-151.0,0.00024384,7]
[320291287,1711248641519,-151.0,0.00024384,7]
[320291288,1711248641531,-151.0,0.00024384,7]
[320291289,1711248641540,-151.517733,0.00024384,7]
[320291290,1711248641549,-151.0,0.00024384,7]
[320291291,1711248641558,-151.0,0.00024384,7]
[320291292,1711248641568,-151.0,0.00024384,7]
[320291293,1711248641577,-151.0,0.00024384,7]
[320291294,1711248641586,-151.984152,0.00024384,7]
[320291295,1711248641596,-151.0,0.00024384,7]
[320291296,1711248641605,-151.0,0.00024384,7]
[320291297,1711248641614,-151.0,0.00024384,7]
[320291298,1711248641624,-151.0,0.00024384,7]
[320291299,1711248641634,-151.0,0.00024384,7]
[320291300,1711248641645,-151.0,0.00024384,7]
[320291301,1711248641655,-151.0,0.00024384,7]
[320291302,1711248641665,-258.151032,0.00024384,7]
[320291303,1711248641674,-151.0,0.00024384,7]
[320291304,1711248641684,-151.0,0.00024384,7]
[320291305,1711248641694,-151.0,0.00024384,7]
[320291306,1711248641703,-151.0,0.00024384,7]
[320291307,1711248641713,-151.0,0.00024384,7]
[320291308,1711248641722,-151.0,0.00024384,7]
[320291309,1711248641731,-151.0,0.00024384,7]
[320291310,1711248641741,-151.0,0.00024384,7]
[320291311,1711248641751,-151.0,0.00024384,7]
[320291312,1711248641760,-152.49553,0.00024384,7]
[320291313,1711248641770,-154.298194,0.00024384,7]
[320291314,1711248641781,-151.0,0.00024384,7]
[320291315,1711248641790,-151.299189,0.00024384,7]
[320291316,1711248641800,-151.0,0.00024384,7]
[320291317,1711248641810,-155.934799,0.00024384,7]
[320291318,1711248641820,-151.0,0.00024384,7]
[320291319,1711248641829,-151.0,0.00024384,7]
[320291320,1711248641838,-151.0,0.00024384,7]
[320291321,1711248641848,-151.0,0.00024384,7]
[320291322,1711248641857,-151.0,0.00024384,7]
[320291323,1711248641866,-151.0,0.00024384,7]
[320291324,1711248641876,-151.0,0.00024384,7]
[320291325,1711248641885,-151.0,0.00024384,7]
[320291326,1711248641894,-151.0,0.00024384,7]
[320291327,1711248641904,-151.0,0.00024384,7]
[320291328,1711248641914,-151.563925,0.00024384,7]
[320291329,1711248641923,-151.0,0.00024384,7]
[320291330,1711248641932,-151.0,0.00024384,7]
[320291331,1711248641942,-151.0,0.00024384,7]
[320291332,1711248641951,-151.0,0.00024384,7]
[320291333,1711248641961,-151.0,0.00024384,7]
[320291334,1711248641971,-151.0,0.00024384,7]
[320291335,1711248641980,-151.0,0.00024384,7]
[320291336,1711248641990,-151.0,0.00024384,7]
[320291337,1711248641999,-151.0,0.00024384,7]
[320291338,1711248642008,-151.0,0.00024384,7]
[320291339,1711248642018,-151.0,0.00024384,7]
[320291340,1711248642028,-151.0,0.00024384,7]
[320291341,1711248642037,-155.21267,0.00024384,7]
[320291342,1711248642046,-151.0,0.00024384,7]
[320291343,1711248642056,-151.0,0.00024384,7]
[320291344,1711248642065,-151.0,0.00024384,7]
[320291345,1711248642074,-151.0,0.00024384,7]
[320291346,1711248642083,-151.0,0.00024384,7]
[320291347,1711248642093,-151.0,0.00024384,7]
[320291348,1711248642102,-151.0,0.00024384,7]
[320291349,1711248642112,-187.07777,0.00024384,7]
[320291350,1711248642122,-151.0,0.00024384,7]
[320291351,1711248642131,-151.0,0.00024384,7]
[320291352,1711248642141,-151.0,0.00024384,7]
[320291353,1711248642151,-311.868537,0.00024384,7]
[320291354,1711248642161,-311.868537,0.00024384,7]
[320291355,1711248642171,-311.868537,0.00024384,7]
[320291356,1711248642181,-311.868537,0.00024384,7]
[320291357,1711248642190,-311.868537,0.00024384,7]
[320291358,1711248642201,-311.868537,0.00024384,7]
[320291359,1711248642211,-311.868537,0.00024384,7]
[320291360,1711248642221,-311.868537,0.00024384,7]
[320291361,1711248642230,-151.0,0.00024384,7]
[320291362,1711248642240,-151.0,0.00024384,7]
[320291363,1711248642250,-151.0,0.00024384,7]
[320291364,1711248642260,-151.0,0.00024384,7]
[320291365,1711248642269,-175.94886,0.00024384,7]
[320291366,1711248642282,-175.94886,0.00024384,7]
[320291367,1711248642293,-175.94886,0.00024384,7]
[320291368,1711248642303,-175.94886,0.00024384,7]
[320291369,1711248642313,-151.0,0.00024384,7]
[320291370,1711248642322,-151.731678,0.00024384,7]
[320291371,1711248642332,-151.0,0.00024384,7]
[320291372,1711248642341,-151.0,0.00024384,7]
[320291373,1711248642350,-151.0,0.00024384,7]
[320291374,1711248642360,-151.0,0.00024384,7]
[320291375,1711248642369,-151.35702,0.00024384,7]
[320291376,1711248642379,-175.94886,0.00024384,7]
[320291377,1711248642388,-175.94886,0.00024384,7]
[320291378,1711248642397,-175.94886,0.00024384,7]
[320291379,1711248642406,-175.94886,0.00024384,7]
[320291380,1711248642416,-151.54159,0.00024384,7]
[320291381,1711248642425,-151.0,0.00024384,7]
[320291382,1711248642435,-151.0,0.00024384,7]
[320291383,1711248642444,-151.0,0.00024384,7]
[320291384,1711248642453,-151.0,0.00024384,7]
[320291385,1711248642463,-151.0,0.00024384,7]
[320291386,1711248642472,-151.0,0.00024384,7]
[320291387,1711248642481,-151.0,0.00024384,7]
[320291389,1711248642490,-151.0,0.00024384,7]
[320291390,1711248642499,-151.0,0.00024384,7]
[320291392,1711248642509,-151.0,0.00024384,7]
[320291394,1711248642518,-156.474961,0.00024384,7]
[320291396,1711248642530,-151.0,0.00024384,7]
[320291397,1711248642539,-151.703046,0.00024384,7]
[320291398,1711248642549,-152.323295,0.00024384,7]
[320291399,1711248642558,-151.0,0.00024384,7]
[320291400,1711248642568,-151.0,0.00024384,7]
[320291402,1711248642578,-151.0,0.00024384,7]
[320291404,1711248642587,-151.321421,0.00024384,7]
[320291406,1711248642597,-151.888153,0.00024384,7]
[320291409,1711248642606,-151.0,0.00024384,7]
[320291412,1711248642615,-151.0,0.00024384,7]
[320291415,1711248642624,-151.0,0.00024384,7]
[320291418,1711248642634,-151.0,0.00024384,7]
[320291421,1711248642643,-151.0,0.00024384,7]
[320291424,1711248642654,-151.0,0.00024384,7]
[320291428,1711248642664,-151.0,0.00024384,7]
[320291431,1711248642673,-151.0,0.00024384,7]
[320291434,1711248642682,-151.0,0.00024384,7]
[320291436,1711248642693,-212.397438,0.00024384,7]
[320291438,1711248642702,-240.240138,0.00024384,7]
[320291440,1711248642711,-154.695685,0.00024384,7]
[320291442,1711248642721,-240.240138,0.00024384,7]
[320291444,1711248642731,-240.240138,0.00024384,7]
[320291446,1711248642741,-240.240138,0.00024384,7]
[320291448,1711248642751,-240.240138,0.00024384,7]
[320291450,1711248642760,-240.240138,0.00024384,7]
[320291452,1711248642770,-240.240138,0.00024384,7]
[320291454,1711248642781,-240.240138,0.00024384,7]
[320291455,1711248642791,-167.203434,0.00024384,7]
[320291456,1711248642800,-151.0,0.00024384,7]
[320291457,1711248642809,-231.763481,0.00024384,7]
[320291458,1711248642818,-151.0,0.00024384,2]
[320291459,1711248642827,-151.0,0.00024384,2]
[320291460,1711248642836,-151.0,0.00024384,2]
[320291461,1711248642845,-151.0,0.00024384,2]
[320291462,1711248642854,-151.0,0.00024384,7]
[320291463,1711248642864,-151.0,0.00024384,7]
[320291464,1711248642873,-151.0,0.00024384,7]
[320291465,1711248642882,-257.203813,0.00024384,7]
[320291466,1711248642891,-208.45,0.000244,2]
[320291467,1711248642899,-1500.0,0.000244,2]
[320291468,1711248642908,-1226.0,0.00024443,2]
[320291469,1711248642919,-150.0,0.00024443,2]
[320291470,1711248642931,-150.0,0.00024443,2]
[320291471,1711248642941,-151.032411,0.00024448,4]
[320291472,1711248642951,-152.0,0.00024453,12]
[320291473,1711248642960,-209.17,0.000245,2]
[320291474,1711248642970,-150.0,0.00024511,2]
[320291475,1711248642979,-1154.37538042,0.0002455,2]
[320291476,1711248642988,-152.0,0.00024552,13]
[320291477,1711248642998,-150.0,0.00024584,2]
[320291478,1711248643007,-150.0,0.00024593,2]
[320291479,1711248643017,-561.8,0.00024604,2]
[320291480,1711248643027,-150.0,0.00024629,2]
[320291481,1711248643036,-152.0,0.00024651,14]
[320291482,1711248643046,-500.0,0.00024657,2]
[320291483,1711248643056,-583.86979054,0.00024657,2]
[320291484,1711248643065,-347.59554563,0.00024657,2]
[320291485,1711248643075,-500.0,0.00024657,2]
[320291486,1711248643084,-507.66890819,0.00024657,2]
[320291487,1711248643093,-514.62746038,0.00024657,2]
[320291488,1711248643102,-512.26888298,0.00024657,2]
[320291489,1711248643111,-512.38848213,0.00024657,2]
[320291490,1711248643121,-320.63852346,0.00024657,2]
[320291491,1711248643130,-506.1240212,0.00024657,2]
[320291492,1711248643140,-500.0,0.00024657,2]
[320291493,1711248643149,-500.0,0.00024657,2]
[320291494,1711248643159,-528.81142326,0.00024657,2]
[320291495,1711248643169,-511.7539322,0.00024657,2]
[320291496,1711248643178,-500.0,0.00024657,2]
[320291497,1711248643237,-505.02549726,0.00024657,2]
[320291498,1711248643248,-151.0,0.00024657,7]
[320291499,1711248643259,-510.80174922,0.00024657,2]
[320291500,1711248643269,-500.0,0.00024657,2]
[320291501,1711248643280,-612.94687344,0.00024657,2]
[320291502,1711248643289,-508.77644497,0.00024657,2]
[320291503,1711248643298,-503.73201066,0.00024657,2]
[320291504,1711248643307,-500.0,0.00024657,2]
[320291505,1711248643316,-508.20972054,0.00024657,2]
[320291506,1711248643326,-507.70633272,0.00024657,2]
[320291507,1711248643335,-506.71270425,0.00024657,2]
[320291508,1711248643344,-562.90412988,0.00024657,2]
[320291509,1711248643353,-151.0,0.00024657,7]
[320291510,1711248643362,-631.43801584,0.00024657,2]
[320291511,1711248643371,-615.73610964,0.00024657,2]
[320291512,1711248643380,-507.10245785,0.00024657,2]
[320291513,1711248643390,-502.95649889,0.00024657,2]
[320291514,1711248643399,-632.03052899,0.00024657,2]
[320291515,1711248643408,-642.72588579,0.00024657,2]
[320291516,1711248643417,-503.93115103,0.00024657,2]
[320291517,1711248643427,-500.0,0.00024657,2]
[320291518,1711248643437,-503.17259259,0.00024657,2]
[320291519,1711248643447,-374.61085397,0.00024657,2]
[320291520,1711248643456,-532.62300339,0.00024657,2]
[320291521,1711248643465,-192.45736958,0.00024657,2]
[320291522,1711248643474,-151.0,0.00024657,7]